bitfinex/quotes_SOLUSD_20250414
["timestamp","ask_amount","ask_price","bid_price","bid_amount"]
[1744649352596,88.5037,129.81,129.77,30.74025505]
[1744649353291,30.74025505,129.8,129.76,1.5997]
[1744649353764,30.74025505,129.79,129.76,1.5997]
[1744649354287,30.74025505,129.78,129.74,13.9288]
[1744649354491,0.28432314,129.78,129.74,44.66905505]
[1744649354684,31.02457819,129.8,129.75,30.74025505]
[1744649354866,31.02457819,129.8,129.74,13.9288]
[1744649355165,31.02457819,129.8,129.75,30.74025505]
[1744649355368,30.74025505,129.78,129.74,6.2212]
[1744649355573,7.98852314,129.8,129.73,9.3073]
[1744649355574,30.74025505,129.77,129.73,9.3073]
[1744649355891,30.74025505,129.77,129.73,1.5992]
[1744649355892,31.02457819,129.76,129.73,1.5992]
[1744649356099,30.74025505,129.74,129.71,13.9525]
[1744649356400,0.28432314,129.76,129.72,30.0]
[1744649356401,30.74025505,129.75,129.72,30.0]
[1744649356579,7.99122314,129.76,129.72,30.0]
[1744649356580,30.74025505,129.74,129.72,30.0]
[1744649357119,30.74025505,129.74,129.71,6.2431]
[1744649357395,30.74025505,129.73,129.7,1.6274]
[1744649358280,38.44885505,129.73,129.7,1.6274]
[1744649359387,30.74025505,129.73,129.7,1.6274]
[1744649359790,38.44885505,129.73,129.7,1.6274]
[1744649360392,38.44975505,129.71,129.69,0.063]
[1744649360593,30.74025505,129.7,129.69,30.063]
[1744649360794,38.44975505,129.71,129.69,30.063]
[1744649361369,108.43829514,129.72,129.69,30.063]
[1744649361370,127.95357819,129.72,129.69,30.063]
[1744649361569,89.50432314,129.72,129.69,30.063]
[1744649361790,127.95347819,129.72,129.69,0.063]
[1744649361991,30.74025505,129.71,129.69,0.063]
[1744649362194,30.74025505,129.7,129.69,0.063]
[1744649363202,38.45015505,129.71,129.69,0.063]
[1744649363383,127.95367819,129.72,129.69,0.063]
[1744649364380,30.74025505,129.7,129.69,30.063]
[1744649364613,30.74025505,129.71,129.69,30.063]
[1744649365299,38.45015505,129.71,129.69,30.063]
[1744649365796,97.21372314,129.72,129.69,30.063]
[1744649365980,127.95397819,129.72,129.69,30.063]
[1744649366184,30.74025505,129.71,129.69,30.063]
[1744649366578,127.95397819,129.72,129.69,30.063]
[1744649366975,30.74025505,129.71,129.69,30.063]
[1744649367174,127.95397819,129.72,129.69,30.063]
[1744649367394,127.95397819,129.72,129.69,0.063]
[1744649367578,30.74025505,129.71,129.69,0.063]
[1744649368784,30.74025505,129.7,129.69,0.063]
[1744649368983,127.95397819,129.72,129.69,0.063]
[1744649369593,30.74025505,129.71,129.69,0.063]
[1744649369795,89.50432314,129.72,129.69,0.063]
[1744649369996,97.21322314,129.72,129.69,30.063]
[1744649370195,127.95347819,129.72,129.69,30.063]
[1744649371086,8.42,129.72,129.7,30.74025505]
[1744649371287,7.708,129.74,129.7,30.74025505]
[1744649371593,38.44825505,129.74,129.69,68.51375505]
[1744649371994,127.66695505,129.76,129.71,30.74025505]
[1744649372381,31.02457819,129.75,129.7,36.88435505]
[1744649373506,30.74025505,129.73,129.69,30.063]
[1744649373700,30.74025505,129.73,129.69,37.7735]
[1744649373878,30.74025505,129.74,129.69,68.51375505]
[1744649374079,119.96025505,129.76,129.71,30.74025505]
[1744649374483,31.02457819,129.74,129.69,68.51375505]
[1744649374708,30.74025505,129.73,129.69,37.7736]
[1744649375293,31.02457819,129.74,129.69,68.51385505]
[1744649375503,7.7083,129.73,129.69,30.063]
[1744649375798,38.44855505,129.73,129.69,60.80325505]
[1744649376309,7.7083,129.73,129.69,60.80325505]
[1744649376504,7.7083,129.73,129.69,68.51385505]
[1744649376804,31.02457819,129.74,129.7,30.74025505]
[1744649376805,7.99202314,129.74,129.7,30.74025505]
[1744649377201,38.73227819,129.74,129.69,68.51385505]
[1744649379208,27.239785,129.74,129.69,57.02136186]
[1744649379911,19.24776186,129.73,129.69,30.063]
[1744649380109,19.24776186,129.72,129.69,30.063]
[1744649380604,38.466057,129.73,129.69,30.063]
[1744649382314,7.7089,129.72,129.69,30.063]
[1744649383699,26.95666186,129.72,129.69,30.063]
[1744649384802,38.60821857,129.7,129.69,30.063]
[1744649384994,0.42648471,129.69,129.68,0.063]
[1744649385201,45.67424657,129.69,129.68,0.063]
[1744649385525,45.532085,129.69,129.68,0.063]
[1744649385709,64.466057,129.69,129.68,0.063]
[1744649386099,64.60821857,129.69,129.68,0.063]
[1744649386900,72.31881857,129.69,129.68,0.063]
[1744649387721,26.14216157,129.66,129.65,0.063]
[1744649387910,45.532085,129.66,129.65,0.063]
[1744649389023,72.178457,129.66,129.65,0.063]
[1744649389196,80.578457,129.66,129.65,0.063]
[1744649390019,80.72061857,129.66,129.65,0.063]
[1744649390820,61.644485,129.66,129.65,0.063]
[1744649391231,42.39672314,129.66,129.65,0.063]
[1744649391429,34.4,129.66,129.65,0.063]
[1744649391936,16.1124,129.66,129.65,0.063]
[1744649392138,8.4,129.66,129.65,0.063]
[1744649392304,26.95986186,129.67,129.65,0.063]
[1744649392639,8.4,129.68,129.65,0.063]
[1744649393827,8.4,129.68,129.66,20.89126186]
[1744649394136,8.4,129.68,129.66,1.6435]
[1744649395230,35.35896186,129.68,129.65,0.063]
[1744649395436,35.35896186,129.68,129.65,30.063]
[1744649396307,35.35896186,129.68,129.65,0.063]
[1744649396506,19.24776186,129.67,129.65,0.063]
[1744649396734,0.28432314,129.66,129.65,0.063]
[1744649397639,80.8,129.7,129.65,49.31076186]
[1744649397815,35.35606186,129.73,129.68,19.24776186]
[1744649398128,0.28432314,129.72,129.67,25.51316186]
[1744649398523,7.99332314,129.72,129.67,25.51316186]
[1744649398716,27.241085,129.72,129.67,25.51316186]
[1744649398926,19.24776186,129.71,129.67,6.2654]
[1744649399445,19.24776186,129.69,129.65,30.063]
[1744649399644,80.8,129.71,129.67,19.24776186]
[1744649400516,80.8,129.71,129.68,7.7112]
[1744649400840,80.8,129.71,129.68,26.95896186]
[1744649401244,80.8,129.71,129.67,26.95936186]
[1744649401740,80.8,129.71,129.67,7.7116]
[1744649402036,19.24776186,129.68,129.65,0.063]
[1744649402243,19.24776186,129.66,129.65,0.063]
[1744649402416,38.466057,129.66,129.65,0.063]
[1744649402621,46.178457,129.66,129.65,0.063]
[1744649403932,19.532085,129.66,129.65,0.063]
[1744649404243,107.75986186,129.67,129.65,0.063]
[1744649405242,19.24776186,129.66,129.65,0.063]
[1744649405446,19.532085,129.66,129.65,0.063]
[1744649406141,38.60821857,129.66,129.65,0.063]
[1744649406349,57.85598043,129.66,129.65,0.063]
[1744649406747,46.178457,129.66,129.65,0.063]
[1744649407426,46.32061857,129.66,129.65,0.063]
[1744649407626,27.244485,129.66,129.65,0.063]
[1744649407828,46.178457,129.66,129.65,0.063]
[1744649408129,65.42621886,129.66,129.65,0.063]
[1744649408334,46.178457,129.66,129.65,0.063]
[1744649408634,65.56838043,129.66,129.65,0.063]
[1744649409225,65.56838043,129.66,129.65,0.0001]
[1744649410668,65.56838043,129.66,129.64,0.0001]
[1744649410959,46.32121857,129.65,129.64,0.0001]
[1744649411955,45.36045671,129.62,129.61,0.063]
[1744649412172,72.98821857,129.62,129.61,30.063]
[1744649413146,80.70301857,129.62,129.61,30.063]
[1744649414366,80.70301857,129.62,129.61,0.063]
[1744649414942,19.21829514,129.61,129.59,0.063]
[1744649415242,0.42648471,129.58,129.57,20.10985887]
[1744649415461,19.67424657,129.58,129.57,20.10985887]
[1744649415670,44.933972,129.57,129.56,0.063]
[1744649415875,72.56173386,129.57,129.56,0.063]
[1744649416978,80.27953386,129.57,129.56,0.063]
[1744649418069,80.70601857,129.57,129.56,0.063]
[1744649418948,161.50601857,129.57,129.56,0.063]
[1744649419352,80.70601857,129.57,129.56,0.0001]
[1744649423592,0.42648471,129.56,129.54,0.063]
[1744649423885,138.51381886,129.55,129.54,0.063]
[1744649424479,119.266057,129.55,129.54,0.063]
[1744649425079,126.985057,129.55,129.54,0.063]
[1744649425386,135.385057,129.55,129.54,0.063]
[1744649426795,135.52721857,129.55,129.54,0.063]
[1744649428082,54.72721857,129.55,129.54,0.063]
[1744649428588,73.97498043,129.55,129.54,0.0001]
[1744649429989,73.97498043,129.55,129.53,0.063]
[1744649429990,19.36045671,129.54,129.53,0.0001]
[1744649430170,57.85598043,129.54,129.53,0.0001]
[1744649431194,8.14668471,129.53,129.52,0.0431]
[1744649431490,27.39444657,129.53,129.52,0.0431]
[1744649432501,46.32841857,129.53,129.52,0.0431]
[1744649433167,69.43841857,129.53,129.52,0.0001]
[1744649433372,44.933972,129.51,129.5,0.03]
[1744649433596,38.466057,129.51,129.5,0.03]
[1744649433985,38.60821857,129.51,129.5,0.03]
[1744649434795,64.466057,129.51,129.5,0.03]
[1744649434995,45.24776186,129.51,129.5,0.03]
[1744649435173,52.96916186,129.51,129.5,0.03]
[1744649435580,53.11132343,129.51,129.5,0.03]
[1744649435784,53.253485,129.51,129.5,0.03]
[1744649437900,80.567457,129.51,129.5,0.03]
[1744649438908,157.3964,129.56,129.5,0.03]
[1744649439079,27.62776186,129.55,129.51,1.5859]
[1744649439283,19.532085,129.54,129.51,1.5859]
[1744649439503,7.7202,129.53,129.51,1.5859]
[1744649440274,26.96796186,129.53,129.51,1.5859]
[1744649440481,7.7202,129.53,129.51,1.5859]
[1744649440896,26.96796186,129.53,129.51,1.5859]
[1744649442303,38.466057,129.52,129.51,1.5859]
[1744649442608,38.466057,129.52,129.5,6.678]
[1744649443378,19.532085,129.51,129.5,6.678]
[1744649443819,8.38,129.52,129.5,6.678]
[1744649444111,16.1008,129.52,129.5,6.678]
[1744649445210,8.38,129.52,129.5,6.678]
[1744649445407,80.8,129.55,129.51,19.24776186]
[1744649446114,88.5192,129.55,129.51,19.24776186]
[1744649446614,107.76696186,129.55,129.5,33.64766186]
[1744649447913,107.76696186,129.55,129.52,19.24776186]
[1744649447914,80.8,129.55,129.52,19.24776186]
[1744649448113,80.8,129.55,129.53,20.89926186]
[1744649448407,100.04776186,129.55,129.53,1.6515]
[1744649448610,19.532085,129.54,129.53,1.6515]
[1744649448785,0.28432314,129.53,129.5,6.678]
[1744649448982,19.532085,129.53,129.5,6.678]
[1744649449186,45.24776186,129.52,129.5,0.03]
[1744649450022,52.96906186,129.52,129.5,0.03]
[1744649450613,33.7213,129.52,129.5,0.03]
[1744649450914,52.96906186,129.52,129.5,0.03]
[1744649451702,61.34906186,129.52,129.5,0.03]
[1744649451995,27.253485,129.51,129.5,0.03]
[1744649452490,46.32961857,129.51,129.5,0.03]
[1744649454417,26.0,129.48,129.46,1.5559]
[1744649454613,45.24776186,129.48,129.46,1.5559]
[1744649454913,26.0,129.48,129.46,1.5559]
[1744649456391,26.0,129.48,129.46,20.80366186]
[1744649456587,33.7232,129.48,129.46,1.5559]
[1744649456927,26.0,129.48,129.46,1.5559]
[1744649457222,33.7232,129.48,129.46,1.5559]
[1744649458194,26.0,129.48,129.46,1.5559]
[1744649458398,26.0,129.48,129.46,20.80366186]
[1744649459014,80.8,129.5,129.47,19.24776186]
[1744649459217,80.8,129.5,129.48,19.24776186]
[1744649459421,80.8,129.5,129.49,19.24776186]
[1744649459724,16.1008,129.52,129.49,19.24776186]
[1744649459909,35.34856186,129.52,129.47,19.24776186]
[1744649460111,16.1008,129.52,129.48,19.24776186]
[1744649460305,19.532085,129.51,129.47,19.24776186]
[1744649460627,19.532085,129.51,129.46,9.2801]
[1744649460628,19.24776186,129.5,129.46,1.5559]
[1744649461035,7.7226,129.49,129.46,1.5559]
[1744649461532,7.7222,129.5,129.46,20.80366186]
[1744649461701,26.96996186,129.5,129.46,1.5559]
[1744649462715,19.532085,129.49,129.46,1.5559]
[1744649463022,27.255185,129.49,129.46,1.5559]
[1744649463229,64.466057,129.47,129.46,0.03]
[1744649463432,72.98821857,129.47,129.46,0.03]
[1744649464703,0.14216157,129.45,129.44,0.03]
[1744649464906,19.67424657,129.45,129.44,0.03]
[1744649465115,27.39914657,129.45,129.44,0.03]
[1744649465732,27.256985,129.45,129.44,0.03]
[1744649466027,8.00922314,129.45,129.44,0.03]
[1744649466234,46.190957,129.45,129.44,0.03]
[1744649466609,27.256985,129.45,129.44,0.03]
[1744649467028,46.190957,129.45,129.44,0.03]
[1744649467922,19.21829514,129.44,129.43,0.03]
[1744649468112,45.532085,129.41,129.4,0.03]
[1744649468632,26.0,129.41,129.4,0.03]
[1744649470044,16.0871,129.42,129.4,0.03]
[1744649470532,80.8,129.43,129.4,19.27776186]
[1744649470711,80.8,129.43,129.4,0.03]
[1744649470910,88.5262,129.43,129.4,0.03]
[1744649471216,107.77396186,129.43,129.4,0.03]
[1744649471415,19.532085,129.41,129.4,0.03]
[1744649471638,46.96821857,129.41,129.4,0.03]
[1744649472312,46.96821857,129.41,129.37,0.03]
[1744649472313,44.933972,129.38,129.37,0.03]
[1744649472511,64.18173386,129.38,129.37,0.03]
[1744649472833,26.0,129.38,129.37,0.03]
[1744649473315,0.28432314,129.39,129.37,0.03]
[1744649473503,88.5285,129.4,129.37,0.03]
[1744649473709,80.8,129.4,129.37,19.27776186]
[1744649474133,80.8,129.4,129.39,19.24776186]
[1744649474337,80.8,129.4,129.38,27.24966186]
[1744649474637,80.8,129.4,129.38,8.0019]
[1744649474838,80.8,129.4,129.38,27.24966186]
[1744649475137,88.5281,129.4,129.38,8.0019]
[1744649475441,80.8,129.4,129.38,8.0019]
[1744649475934,88.5281,129.4,129.38,1.5731]
[1744649476137,19.36045671,129.38,129.37,0.03]
[1744649476439,46.96821857,129.38,129.37,0.03]
[1744649476914,46.826057,129.38,129.37,0.03]
[1744649477331,58.55069103,129.38,129.37,0.03]
[1744649477531,66.27979103,129.38,129.37,0.03]
[1744649477834,66.4219526,129.38,129.37,0.03]
[1744649480433,66.4219526,129.38,129.33,0.03]
[1744649480434,31.25671903,129.34,129.33,0.03]
[1744649480634,0.28432314,129.34,129.33,0.03]
[1744649480840,26.0,129.35,129.33,0.03]
[1744649481014,7.7279,129.4,129.34,30.97239589]
[1744649481214,38.70029589,129.4,129.35,30.97239589]
[1744649481416,30.97239589,129.39,129.34,30.97239589]
[1744649481815,33.7291,129.38,129.35,30.97239589]
[1744649482542,7.7291,129.38,129.35,30.97239589]
[1744649482836,8.01312314,129.39,129.36,30.97239589]
[1744649483013,8.01312314,129.39,129.35,30.97239589]
[1744649483412,7.7281,129.4,129.37,30.97239589]
[1744649483620,89.16,129.41,129.38,30.97239589]
[1744649483819,89.16,129.41,129.39,30.97239589]
[1744649484216,89.16,129.41,129.38,1.5034]
[1744649484443,89.16,129.41,129.39,30.97239589]
[1744649486254,7.7259,129.44,129.39,38.70069589]
[1744649486420,26.0,129.42,129.41,30.97239589]
[1744649486743,7.7259,129.44,129.41,30.97239589]
[1744649487843,257.0051,129.45,129.42,30.97239589]
[1744649488346,257.0051,129.45,129.41,30.97239589]
[1744649488944,0.28432314,129.44,129.4,30.97239589]
[1744649489645,57.63216789,129.44,129.38,1.5034]
[1744649489849,0.28432314,129.4,129.38,1.5034]
[1744649490142,0.28432314,129.4,129.37,6.5964]
[1744649490143,30.97239589,129.39,129.34,39.07399589]
[1744649490513,31.25671903,129.38,129.34,39.07399589]
[1744649490712,31.25671903,129.38,129.34,1.607]
[1744649490713,31.25671903,129.36,129.34,1.607]
[1744649490916,31.25671903,129.36,129.33,0.03]
[1744649491117,80.8,129.37,129.34,30.97239589]
[1744649491539,80.8,129.37,129.35,30.97239589]
[1744649491744,88.5298,129.37,129.34,30.97239589]
[1744649491920,31.25671903,129.36,129.33,0.03]
[1744649492125,107.8542,129.37,129.33,0.03]
[1744649492126,80.8,129.37,129.33,38.73409589]
[1744649492339,80.8,129.37,129.34,30.97239589]
[1744649492550,7.7287,129.39,129.36,30.97239589]
[1744649492853,8.36,129.4,129.38,30.97239589]
[1744649493532,8.36,129.4,129.37,37.18959589]
[1744649493733,16.088,129.4,129.37,37.18959589]
[1744649494132,8.36,129.4,129.37,37.18959589]
[1744649494423,88.5269,129.42,129.39,30.97239589]
[1744649494624,80.8,129.42,129.39,30.97239589]
[1744649494849,88.5268,129.42,129.4,30.97239589]
[1744649495161,88.5268,129.42,129.39,30.97239589]
[1744649495630,88.5268,129.42,129.38,30.97239589]
[1744649496033,119.49919589,129.42,129.37,37.18959589]
[1744649496649,88.5268,129.42,129.39,30.97239589]
[1744649497022,88.5268,129.42,129.38,30.97239589]
[1744649497222,88.5268,129.42,129.37,37.18959589]
[1744649497223,119.49919589,129.42,129.37,37.18959589]
[1744649497656,88.5268,129.42,129.38,30.97239589]
[1744649498548,88.5268,129.42,129.37,13.9469]
[1744649498759,30.97239589,129.4,129.35,30.97239589]
[1744649499135,8.62432314,129.39,129.35,30.97239589]
[1744649499458,30.97239589,129.37,129.33,0.03]
[1744649499625,30.97239589,129.36,129.33,0.03]
[1744649499833,7.7309,129.35,129.33,0.03]
[1744649500030,8.01492314,129.36,129.33,0.03]
[1744649500339,80.8,129.38,129.35,30.97239589]
[1744649500856,80.8,129.38,129.33,0.03]
[1744649501033,80.8,129.38,129.35,30.97239589]
[1744649501434,80.8,129.38,129.33,0.03]
[1744649501734,80.8,129.38,129.35,30.97239589]
[1744649502923,30.97239589,129.37,129.33,0.03]
[1744649503141,30.97239589,129.35,129.33,0.03]
[1744649503547,31.25671903,129.36,129.33,0.03]
[1744649503728,80.8,129.38,129.34,30.97239589]
[1744649503944,8.34,129.39,129.36,38.70269589]
[1744649504153,88.527,129.42,129.38,30.97239589]
[1744649505035,80.8,129.42,129.39,30.97239589]
[1744649505937,88.5267,129.42,129.39,30.97239589]
[1744649506139,31.25671903,129.41,129.37,1.6277]
[1744649506338,88.5267,129.42,129.38,30.97239589]
[1744649506651,119.49909589,129.42,129.37,40.32969589]
[1744649507837,88.5267,129.42,129.38,30.97239589]
[1744649508037,88.5267,129.42,129.38,38.70129589]
[1744649508359,80.8,129.42,129.39,30.97239589]
[1744649508566,88.5268,129.42,129.39,30.97239589]
[1744649508765,80.8,129.42,129.4,30.97239589]
[1744649509269,88.5269,129.42,129.38,38.70129589]
[1744649509841,88.5269,129.42,129.32,9.34]
[1744649509842,30.97239589,129.39,129.34,7.6238]
[1744649510064,30.97239589,129.39,129.34,38.59619589]
[1744649510764,0.28432314,129.41,129.37,30.97239589]
[1744649510962,0.28432314,129.41,129.38,30.97239589]
[1744649511162,88.5272,129.42,129.38,30.97239589]
[1744649511359,119.49959589,129.42,129.37,30.97239589]
[1744649512360,119.49959589,129.42,129.37,38.70199589]
[1744649512559,119.49959589,129.42,129.36,7.73]
[1744649513271,107.87089623,129.42,129.37,19.34369623]
[1744649513442,107.87089623,129.42,129.36,7.73]
[1744649513443,19.34369623,129.41,129.36,19.34369623]
[1744649514059,7.7285,129.39,129.35,19.34369623]
[1744649514476,7.7285,129.39,129.35,27.07459623]
[1744649515044,7.7285,129.39,129.35,19.34369623]
[1744649515675,27.07219623,129.39,129.34,19.34369623]
[1744649515975,7.7285,129.39,129.35,19.34369623]
[1744649516669,27.35611937,129.4,129.35,27.07419623]
[1744649517372,100.14369623,129.42,129.37,19.34369623]
[1744649517552,80.8,129.42,129.38,19.34369623]
[1744649518469,88.527,129.42,129.38,19.34369623]
[1744649518676,88.527,129.42,129.37,7.7296]
[1744649518677,107.87069623,129.42,129.37,27.07329623]
[1744649520275,80.8,129.42,129.38,27.07249623]
[1744649520479,16.1293,129.43,129.39,19.34369623]
[1744649520946,16.1293,129.43,129.38,19.34369623]
[1744649520947,35.47299623,129.43,129.38,19.34369623]
[1744649521767,19.34369623,129.4,129.33,20.9178]
[1744649521967,19.34369623,129.4,129.34,19.34369623]
[1744649522178,26.94559514,129.42,129.36,19.34369623]
[1744649522354,27.35531937,129.42,129.37,19.34369623]
[1744649522754,19.34369623,129.4,129.35,19.34369623]
[1744649522974,19.34369623,129.41,129.36,19.34369623]
[1744649523179,27.35531937,129.42,129.37,19.34369623]
[1744649523772,7.7273,129.42,129.38,19.34369623]
[1744649524284,27.07099623,129.42,129.37,27.07299623]
[1744649524462,27.07099623,129.42,129.37,19.34369623]
[1744649525164,19.34369623,129.41,129.36,27.07369623]
[1744649525666,27.07099623,129.42,129.37,19.34369623]
[1744649526051,7.7273,129.42,129.37,19.34369623]
[1744649526257,27.07099623,129.42,129.37,19.34369623]
[1744649527383,27.07099623,129.42,129.37,27.07339623]
[1744649527584,7.7273,129.42,129.38,19.34369623]
[1744649528265,8.403,129.43,129.39,27.07179623]
[1744649528771,16.1292,129.43,129.38,27.07249623]
[1744649528970,35.47289623,129.43,129.38,27.07249623]
[1744649529175,35.47289623,129.43,129.36,19.3259]
[1744649529176,19.62801937,129.42,129.37,19.34369623]
[1744649529387,0.28432314,129.42,129.37,19.34369623]
[1744649529583,0.28432314,129.42,129.38,19.34369623]
[1744649529975,16.1292,129.43,129.39,19.34369623]
[1744649530305,8.403,129.43,129.39,19.34369623]
[1744649530804,35.47289623,129.43,129.38,19.34369623]
[1744649531085,45.34369623,129.39,129.33,1.5879]
[1744649531283,19.34369623,129.37,129.33,1.5879]
[1744649531461,19.34369623,129.37,129.33,0.03]
[1744649532159,27.68369623,129.38,129.33,27.10579623]
[1744649533294,35.41339623,129.38,129.33,27.10579623]
[1744649534193,8.34,129.38,129.34,19.34369623]
[1744649534363,16.0692,129.38,129.34,19.34369623]
[1744649534896,35.41289623,129.38,129.33,27.10579623]
[1744649535694,8.34,129.38,129.34,19.34369623]
[1744649535886,16.0692,129.38,129.35,19.34369623]
[1744649536198,35.41289623,129.38,129.33,27.10579623]
[1744649536388,38.70415294,129.34,129.33,0.03]
[1744649537390,38.56199137,129.34,129.33,0.03]
[1744649537775,46.29349137,129.34,129.33,0.03]
[1744649538563,27.35951937,129.34,129.33,0.03]
[1744649538769,7.7312,129.35,129.33,0.03]
[1744649538971,249.4,129.38,129.34,19.34369623]
[1744649539394,8.34,129.38,129.36,19.34369623]
[1744649539576,8.34,129.38,129.37,19.34369623]
[1744649539790,7.7273,129.41,129.37,19.34369623]
[1744649540806,88.5273,129.41,129.37,19.34369623]
[1744649541287,88.5273,129.41,129.37,30.94813897]
[1744649542204,47.01513897,129.42,129.37,30.94813897]
[1744649542570,0.28432314,129.41,129.37,30.94813897]
[1744649542791,30.94813897,129.4,129.35,30.94813897]
[1744649543094,30.94813897,129.4,129.34,7.7313]
[1744649543308,50.16643411,129.41,129.34,7.7313]
[1744649543474,30.94813897,129.4,129.34,7.7313]
[1744649543796,50.16643411,129.41,129.36,30.94813897]
[1744649544176,7.7279,129.4,129.36,30.94813897]
[1744649544792,50.16643411,129.39,129.33,30.97813897]
[1744649546500,7.7291,129.38,129.34,30.94813897]
[1744649546679,58.60513897,129.42,129.37,30.94813897]
[1744649547178,0.28432314,129.41,129.37,30.94813897]
[1744649547375,58.60513897,129.42,129.37,30.94813897]
[1744649547576,0.28432314,129.41,129.37,30.94813897]
[1744649547776,8.01162314,129.41,129.37,30.94813897]
[1744649548394,58.27816211,129.41,129.36,30.94813897]
[1744649548600,30.94813897,129.4,129.35,30.94813897]
[1744649549200,58.27816211,129.41,129.36,30.94813897]
[1744649550279,27.33002314,129.41,129.36,30.94813897]
[1744649550474,58.27816211,129.41,129.36,30.94813897]
[1744649551199,58.27816211,129.41,129.34,30.94813897]
[1744649551200,31.23246211,129.39,129.34,30.94813897]
[1744649551402,30.94813897,129.38,129.33,0.03]
[1744649551779,7.7297,129.37,129.33,30.97813897]
[1744649552503,38.67783897,129.37,129.33,0.03]
[1744649554396,37.45773897,129.4,129.34,30.94813897]
[1744649554583,26.0,129.38,129.36,30.94813897]
[1744649555097,26.0,129.38,129.35,30.94813897]
[1744649555276,26.0,129.38,129.34,30.94813897]
[1744649555695,33.7293,129.38,129.34,38.67963897]
[1744649556500,26.0,129.38,129.35,30.94813897]
[1744649557283,33.7291,129.38,129.35,30.94813897]
[1744649558593,33.7291,129.38,129.34,30.94813897]
[1744649559820,33.7291,129.38,129.34,38.67953897]
[1744649560711,26.0,129.38,129.34,38.67953897]
[1744649561013,26.0,129.38,129.35,30.94813897]
[1744649561515,33.7292,129.38,129.34,30.94813897]
[1744649562104,33.7292,129.38,129.33,38.70993897]
[1744649562606,31.23246211,129.37,129.33,0.03]
[1744649563109,39.55246211,129.37,129.33,0.03]
[1744649563306,27.96444396,129.37,129.33,0.03]
[1744649564702,7.7303,129.36,129.33,0.03]
[1744649568312,16.05,129.37,129.33,19.39012082]
[1744649568502,8.32,129.37,129.34,19.36012082]
[1744649568820,16.0499,129.37,129.33,0.03]
[1744649568997,19.36012082,129.36,129.33,0.03]
[1744649569309,35.41002082,129.37,129.33,0.03]
[1744649569816,16.0499,129.37,129.33,0.03]
[1744649570110,16.0499,129.37,129.34,19.36012082]
[1744649570427,26.0,129.38,129.36,19.36012082]
[1744649570789,26.0,129.38,129.35,19.36012082]
[1744649572608,33.7292,129.38,129.34,19.36012082]
[1744649573224,19.36012082,129.37,129.33,0.03]
[1744649573605,53.08932082,129.38,129.33,27.12212082]
[1744649573903,53.08932082,129.38,129.33,19.39012082]
[1744649574104,0.28432314,129.37,129.33,19.39012082]
[1744649574303,19.36012082,129.36,129.33,0.03]
[1744649574630,45.64444396,129.34,129.33,0.03]
[1744649575129,64.57841596,129.34,129.33,0.03]
[1744649575814,72.30991596,129.34,129.33,0.03]
[1744649576197,72.45207753,129.34,129.33,0.03]
[1744649577228,72.45207753,129.34,129.33,0.0001]
[1744649579324,53.09195671,129.34,129.33,0.0001]
[1744649579528,72.45207753,129.34,129.33,0.0001]
[1744649582807,26.0,129.31,129.28,0.03]
[1744649583120,8.32,129.3,129.28,0.03]
[1744649583513,34.32,129.3,129.28,0.03]
[1744649583821,0.28432314,129.29,129.28,0.03]
[1744649584015,38.57841596,129.29,129.28,0.03]
[1744649584219,38.72057753,129.29,129.28,0.03]
[1744649584436,46.45507753,129.29,129.28,0.03]
[1744649584720,0.28432314,129.23,129.19,1.6508]
[1744649584921,19.64444396,129.23,129.19,1.6508]
[1744649585631,19.36012082,129.22,129.19,1.6508]
[1744649585813,38.72057753,129.21,129.18,2.724849]
[1744649586505,46.31771596,129.21,129.18,2.724849]
[1744649586709,46.45987753,129.21,129.18,2.724849]
[1744649587219,58.16286821,129.21,129.18,2.724849]
[1744649587419,26.0,129.19,129.18,2.724849]